Cogmind - Beta 10.2 @@@ ROGUE MODE // 2021.06.26 @ 13:15:24 Player: Finestep Result: Destroyed by 8R-AWN with 8R-AWN's Boregun Performance ------------- Evolutions (0) 0 Regions Visited (3) 600 Robots Destroyed (29) 145 Value Destroyed (568) 568 Prototype IDs (24) 480 Alien Tech Used (0) 0 Bonus (89) 89 TOTAL SCORE: 1882 Bonus ------- Aligned with FarCom 300 Friendly Fire -211 Cogmind --------- Core Integrity 0/250 Matter 223/300 Energy 100/100 System Corruption 0% Temperature Cool (0) Movement Core (1400) Ox27 Location -10/Exiles Parts ------- > --- POWER (1) -------- (None) > --- PROPULSION (2) --- Advanced Myomer Leg > --- UTILITY (2) ------ Humpback > --- WEAPON (2) ------- Assault Rifle Light Assault Rifle > --- INVENTORY (24) --- Large Storage Unit Large Storage Unit Humpback High-capacity Battery (400) Light Assault Rifle Grenade Launcher Datajack Mining Laser Peak State ------------ > --- POWER ------------ (None) > --- PROPULSION ------- Light Treads Advanced Myomer Leg > --- UTILITY ---------- Humpback > --- WEAPON ----------- Assault Rifle Light Assault Rifle > --- INVENTORY -------- Large Storage Unit Large Storage Unit Humpback High-capacity Battery High-capacity Matter Pod Light Assault Rifle Grenade Launcher Datajack Mining Laser [Rating: 14] Favorites ----------- Power Ion Engine Engine Ion Engine Power Core Light Nuclear Core Propulsion Light Treads Treads Light Treads Leg Advanced Myomer Leg Utility Large Storage Unit Storage Large Storage Unit Weapon Light Assault Rifle Energy Gun Medium Laser Ballistic Gun Light Assault Rifle Launcher Grenade Launcher Build | -11 -10 -10 -10 ------- Run | Scr Mat Min Exi Slots Evolved . | . . . . Power . | . . . . Propulsion . | . . . . Utility . | . . . . Weapon . | . . . . Parts Attached 26 | 7 8 1 10 Power 4 | 1 2 . 1 Engine 3 | 1 2 . . Core 1 | . . . 1 Reactor . | . . . . Propulsion 7 | 2 2 1 2 Treads 6 | 2 2 1 1 Leg 1 | . . . 1 Wheel . | . . . . Hover . | . . . . Flight . | . . . . Utility 6 | 2 3 . 1 Device . | . . . . Storage 6 | 2 3 . 1 Processor . | . . . . Hackware . | . . . . Protection . | . . . . Artifact . | . . . . Weapon 9 | 2 1 . 6 Energy Gun 1 | 1 . . . Energy Cannon . | . . . . Ballistic Gun 7 | 1 1 . 5 Ballistic Cannon . | . . . . Launcher 1 | . . . 1 Special Weapon . | . . . . Impact Weapon . | . . . . Slashing Weapon . | . . . . Piercing Weapon . | . . . . Special Melee Weapon . | . . . . Unidentified Prototypes 1 | . . . 1 Parts Lost 10 | . 1 . 9 Power 2 | . . . 2 Propulsion 3 | . . . 3 Utility . | . . . . Weapon 5 | . 1 . 4 Highest Loss Streak 9 | . 1 . 9 Average Slot Usage (%) 95 | . 99 100 88 Engine 13 | . 14 14 12 Treads 27 | . 27 28 26 Storage 24 | . 28 28 18 Energy Gun 4 | . 8 . . Ballistic Gun 23 | . 19 28 27 Naked Turns . | . . . . Heaviest Build 88 | 16 40 39 88 Greatest Support 40 | 40 40 40 40 Greatest Overweight (x) 2 | . . . 2 Average Overweight (x) . | . . . . Largest Inventory Capacity 24 | 8 16 16 24 Average Capacity 15 | 6 13 16 20 Most Carried 24 | 3 16 16 24 Average Carried 12 | 1 10 15 16 Final Capacity 24 | 8 16 16 24 Final Carried 16 | 3 16 16 9 Class Distribution -------------------- 78% | Mutant 21% | Hauler-Mutant Dominant Class ---------------- Mutant | -10/Materials Mutant | -10/Mines Hauler-Mutant | -10/Exiles Resources | -11 -10 -10 -10 ----------- Run | Scr Mat Min Exi Matter Collected 686 | 277 155 54 200 Remotely . | . . . . Salvage Created 983 | 138 625 198 22 Parts 61 | 9 45 7 . Haulers Intercepted 2 | . 2 . . Recyclers Shooed 2 | . 1 1 . Parts Field Recycled . | . . . . Retrieved Matter . | . . . . Parts Self-Destructed . | . . . . Prevented . | . . . . Kills | -11 -10 -10 -10 ------- Run | Scr Mat Min Exi Combat Hostiles Destroyed 24 | . 13 4 7 Guns 18 | . 13 4 1 AOE 6 | . . . 6 Classes Destroyed 9 | 2 6 . 1 Worker 1 | . 1 . . Tunneler 2 | 2 . . . Hauler 2 | . 2 . . Recycler 2 | 1 1 . . Operator 2 | . 2 . . Watcher 3 | . 3 . . Swarmer 6 | . 6 . . Grunt 11 | . 7 4 . Assembled 7 | . . . 7 Best Kill Streak 7 | 2 3 2 7 Combat Bots Only 7 | . 3 2 7 Max Kills in Single Turn 3 | 2 1 1 3 Gunslinging . | . . . . Exploded 3 | . . . 3 Melee . | . . . . Uniques/NPCs Destroyed . | . . . . Combat | -11 -10 -10 -10 -------- Run | Scr Mat Min Exi Damage Taken 1995 | . 533 136 1326 Core 265 | . 62 . 203 Absorbed by Shields . | . . . . Core Remaining (%) 100 | 100 . . . Volleys Fired 143 | 7 71 23 42 Largest 2 | 2 2 2 2 Hottest 70 | 70 70 40 40 Shots Fired 282 | 14 142 46 80 Gun 278 | 14 142 46 76 Cannon . | . . . . Launcher 4 | . . . 4 Special . | . . . . Kinetic 213 | 7 84 46 76 Thermal 65 | 7 58 . . Explosive 4 | . . . 4 Electromagnetic . | . . . . Robot Hit Streak 11 | 5 11 11 11 Robot Miss Streak 3 | 3 3 1 2 Penetration Max . | . . . . Secondary Targets 1 | . . . 1 Max Gunslinging Chain 1 | . . . 1 Shots Hit Robots 209 | 8 103 37 61 Core Hits 81 | 5 39 13 24 Critical Hits . | . . . . Critical Kills . | . . . . Critical Parts Destroyed . | . . . . Melee Attacks . | . . . . Impact . | . . . . Slashing . | . . . . Piercing . | . . . . Sneak Attacks . | . . . . Combat Hostiles . | . . . . Follow-up Attacks . | . . . . Damage Inflicted 2380 | 90 951 306 1033 Guns 1990 | 90 951 306 643 Cannons . | . . . . Explosions 390 | . . . 390 Melee . | . . . . Ramming . | . . . . Kinetic 1481 | 41 491 306 643 Thermal 509 | 49 460 . . Explosive 390 | . . . 390 Electromagnetic . | . . . . Impact . | . . . . Slashing . | . . . . Piercing . | . . . . Highest Corruption . | . . . . Average Corruption . | . . . . Corruption Purged . | . . . . Overload Shots . | . . . . Overflow Damage . | . . . . Projectiles . | . . . . Explosions . | . . . . Melee . | . . . . Knockbacks . | . . . . Impact . | . . . . Kinetic . | . . . . Secondary . | . . . . Self-Inflicted Damage . | . . . . Shots . | . . . . Rammed . | . . . . Targets Rammed . | . . . . Kicked . | . . . . Crushed . | . . . . Highest Temperature 252 | 90 252 9 . Average Temperature 64 | 34 70 7 . Received Heat Transfer 288 | . 210 78 . Siege Activations . | . . . . Robots Corrupted . | . . . . Combat Hostiles . | . . . . Parts Fried . | . . . . Impact Corruptions . | . . . . Robots Melted . | . . . . Combat Hostiles . | . . . . Parts Melted 1 | . 1 . . Heat Transferred 1517 | 148 1369 . . Parts Sabotaged . | . . . . Parts Stolen . | . . . . Parts Stripped . | . . . . Power Chain Reactions . | . . . . Missiles Intercepted . | . . . . Alert | -11 -10 -10 -10 ------- Run | Scr Mat Min Exi Peak Influence 293 | 15 293 218 . Initial 73 | . 9 73 . Average 149 | 5 157 166 . Maximum Alert Level 1 | . 1 1 . Low Security (%) 69 | 100 70 52 . Level 1 30 | . 29 47 . Level 2 . | . . . . Level 3 . | . . . . Level 4 . | . . . . Level 5 . | . . . . High Security . | . . . . Max Security . | . . . . Squads Dispatched 3 | . 3 . . Investigation 2 | . 2 . . Extermination . | . . . . Reinforcement 1 | . 1 . . Assault . | . . . . Garrison . | . . . . Intercept . | . . . . Construction Impeded . | . . . . Haulers Reinforced . | . . . . Stealth | -11 -10 -10 -10 --------- Run | Scr Mat Min Exi Distress Signals . | . . . . Communications Jammed . | . . . . Distress Signals . | . . . . Times Spotted 38 | . 24 6 8 Peak Tracking Total 6 | . 3 4 6 Tactical Retreats 2 | . 1 1 . Traps | -11 -10 -10 -10 ------- Run | Scr Mat Min Exi Traps Triggered . | . . . . Indirectly . | . . . . Trap Hack Attempts . | . . . . Triggered . | . . . . Disarmed . | . . . . Reprogrammed . | . . . . Reused 3 | . . . 3 Traps Extracted . | . . . . Installed 5 | . . . 5 Triggered . | . . . . Machines | -11 -10 -10 -10 ---------- Run | Scr Mat Min Exi Machines Disabled 3 | . . . 3 Max in Single Turn 2 | . . . 2 Machines Sabotaged . | . . . . Garrisons Compromised . | . . . . Overloaded Fab Kills . | . . . . Fab Network Shutdowns . | . . . . Hacking | -11 -10 -10 -10 --------- Run | Scr Mat Min Exi Machines Accessed 12 | . 10 . 2 Terminals 7 | . 7 . . Fabricators . | . . . . Repair Stations 1 | . 1 . . Recycling Units 2 | . 2 . . Scanalyzers . | . . . . Garrison Access . | . . . . Total Hacks 33 | . 28 . 5 Successful 20 | . 15 . 5 Failed 12 | . 12 . . Catastrophic . | . . . . Database Lockouts 1 | . 1 . . Manual 19 | . 18 . 1 Terminals 20 | . 20 . . Fabricators . | . . . . Repair Stations 4 | . 4 . . Recycling Units 4 | . 4 . . Scanalyzers . | . . . . Garrison Access . | . . . . Terminal Hacks 7 | . 2 . 5 Record 4 | . . . 4 Part Schematic 1 | . 1 . . Robot Analysis 1 | . 1 . . EX-Prototype ID Bank 1 | . . . 1 Fabricator Hacks . | . . . . Repair Station Hacks 4 | . 4 . . Scan Component 2 | . 2 . . Repair 2 | . 2 . . Recycling Unit Hacks 1 | . 1 . . Retrieve Components 1 | . 1 . . Scanalyzer . | . . . . Garrison Access Hacks . | . . . . Unauthorized Hacks 8 | . 8 . . Terminals 6 | . 6 . . Track 1 | . 1 . . Assimilate 2 | . 2 . . Botnet 2 | . 2 . . Operators 1 | . 1 . . Fabricators . | . . . . Repair Stations . | . . . . Recycling Units 2 | . 2 . . Tunnel 2 | . 2 . . Scanalyzers . | . . . . Garrison Access . | . . . . Data Cores Recovered . | . . . . Used . | . . . . Hacking Detections 7 | . 7 . . Full Trace Events . | . . . . Feedback Events . | . . . . Feedback Blocked . | . . . . Robot Schematics Acquired . | . . . . Robots Built . | . . . . Matter . | . . . . Time . | . . . . Total Robot Build Rating . | . . . . Part Schematics Acquired 1 | . 1 . . Parts Built . | . . . . Matter . | . . . . Time . | . . . . Total Part Build Rating . | . . . . Parts Repaired 2 | . 2 . . Time 52 | . 52 . . Parts Recycled . | . . . . Recycled Matter . | . . . . Retrieved Matter . | . . . . Retrieved Components . | . . . . Parts Scanalyzed . | . . . . Part Schematics Acquired . | . . . . Parts Damaged . | . . . . Bothacking | -11 -10 -10 -10 ------------ Run | Scr Mat Min Exi Used RIF Installer . | . . . . Robots Hacked . | . . . . Non-combat . | . . . . Combat . | . . . . Robot Hacks Applied . | . . . . Relay Couplers Released . | . . . . Robots Rewired . | . . . . Allies Hacked . | . . . . Hacks Repelled . | . . . . Allies | -11 -10 -10 -10 -------- Run | Scr Mat Min Exi Total Allies 1 | . 1 . . Largest Group 1 | . 1 . . Highest-Rated Group 10 | . 10 . . Highest-Rated Ally 10 | . 10 . . Total Orders . | . . . . Ally Attacks . | . . . . Total Damage . | . . . . Kills . | . . . . Allies Corrupted . | . . . . Allies Melted . | . . . . Intel | -11 -10 -10 -10 ------- Run | Scr Mat Min Exi Robot Analysis Total 1 | . 1 . . Derelict Logs Recovered . | . . . . Drone Launches . | . . . . Drone Recoveries . | . . . . Exploration | -11 -10 -10 -10 ------------- Run | Scr Mat Min Exi Turns Passed 2938 | 116 1524 317 981 Spaces Moved 1423 | 55 759 156 453 Core 4 | 4 . . . Treads 1419 | 51 759 156 453 Legs . | . . . . Wheels . | . . . . Hover . | . . . . Flight . | . . . . Fastest Speed 50 | 50 160 160 160 Average Speed 166 | 152 160 160 179 Slowest Speed 200 | 160 160 160 200 Overloaded Moves . | . . . . Propulsion Burnouts . | . . . . Robots Hopped . | . . . . Cave-ins Triggered . | . . . . Exploration Rate (%) 50 | 4 98 33 67 Regions Visited 3 Branch Regions 2 Pre-discovered Areas 3 | . 2 . 1 Known Exits Taken . | . . . . Unknown Exits Taken 3 | 1 1 1 . Scrap Searched 2 | . . 2 . Spaces Dug . | . . . . Terrain Destroyed 18 | . . . 18 Melee . | . . . . Projectile . | . . . . AOE 18 | . . . 18 Terrain Rammed . | . . . . Walls Destroyed . | . . . . Machines Disabled . | . . . . Actions | -11 -10 -10 -10 --------- Run | Scr Mat Min Exi Total 1757 | 71 945 189 552 Wait 84 | . 84 . . Move 1420 | 54 758 155 453 Hop . | . . . . Pick Up 50 | 3 17 5 25 Fast Attach 11 | 7 2 . 2 Attach 7 | . 1 . 6 Detach . | . . . . Swap 8 | . 5 1 2 Drop 29 | . 7 5 17 Fire 143 | 7 71 23 42 Melee . | . . . . Ram . | . . . . Kick . | . . . . Crush . | . . . . Escape Stasis . | . . . . Rewire . | . . . . Trap 5 | . . . 5 Miscellaneous . | . . . . Route ------- -11/Scrapyard -10/Materials (discovered 4 exits: [*Mat x3] / [*Min]) -10/Mines (discovered 2 exits: [*Mat] / *Exi) -10/Exiles History --------- Turn | Location | Event 17 | -11/Scrapyard | Discovered new exit (range 15) 117 | -11/Scrapyard | Entered Materials 304 | -10/Materials | Build established: Mutant 344 | -10/Materials | Discovered new exit (range 10) 623 | -10/Materials | Discovered new exit (range 11) 823 | -10/Materials | Repaired Lgt. Treads 850 | -10/Materials | Repaired Lgt. Treads 1042 | -10/Materials | Discovered new exit (range 11) 1360 | -10/Materials | Discovered new exit (range 15) 1515 | -10/Materials | Central database locked down 1641 | -10/Materials | Entered Mines 1641 | -10/Mines | Discovered new exit (range 13) 1747 | -10/Mines | Found a hidden stash of uninstalled traps 1952 | -10/Mines | Deemed a non-threat by the Exiles lab entrance 1952 | -10/Mines | Discovered new exit (range 5) 1958 | -10/Mines | Entered Exiles 2082 | -10/Exiles | Met 8R-AWN 2110 | -10/Exiles | Met EX-HEX 2170 | -10/Exiles | Met EX-DEC 2182 | -10/Exiles | Learned location of Zion (-6) 2486 | -10/Exiles | Met EX-BIN 2524 | -10/Exiles | Aligned with FarCom system 2526 | -10/Exiles | Given EX-Vault access code 2572 | -10/Exiles | Opened EX-Vault 2588 | -10/Exiles | Found AWS/Autocannon 2603 | -10/Exiles | Build established: Hauler-Mutant 2631 | -10/Exiles | Warned to stay clear of 0b10 Research branches 2808 | -10/Exiles | Attacked by the Exiles 2840 | -10/Exiles | Destroyed 7 combat bots 2884 | -10/Exiles | Core integrity fell below 50% 2927 | -10/Exiles | Core integrity fell below 20% 2931 | -10/Exiles | Lost 9 parts (2p3n4w) 2939 | -10/Exiles | Destroyed by 8R-AWN with 8R-AWN's Boregun Last Messages --------------- 02883_ HV Slug penetrates Wall. 02887_ Dropped Hcp. Matter Pod. 02887_ Destroyed Prototype Protection. 02888_ Extracted 180 matter. 02888_ Penetrated by HV Slug. 02888_ HV Slug penetrates Wall. 02888_ Penetrated by HV Slug. 02888_ HV Slug penetrates Wall. 02892_ Penetrated by HV Slug. 02892_ HV Slug penetrates Wall. 02892_ Penetrated by HV Slug. 02892_ HV Slug penetrates Wall. 02896_ Penetrated by HV Slug. 02896_ HV Slug penetrates Wall. 02900_ Penetrated by HV Slug. 02900_ Critical hit. 02900_ Lgt. Treads destroyed. 02905_ Penetrated by HV Slug. 02917_ HV Slug penetrates Wall. 02917_ Penetrated by HV Slug. Map ----- +----------------------------------------------------+ | """#??????????????????????????????????????? | | """#??????????????????????????????????????? | | """#??????????????????????????????????????? | | """"??????????????????????????????????????? | | """#??????????????????????????????????????? | | "X" """???????????????????????????????????????? | | """ ???????????????????????????????????????? | | """""""""???????????????????????????????????????? | | ###########??????????????????????????????????????? | | #????????????????????????????????????????????????? | | #????????????????????????????????????????????????? | | ##???????????????????????????????????????????????? | | ##???###########????????????????????????????????? | | #####"""" """"##???????????????????????????????? | | " """ """"##??????????????????????????????? | | " " #??????????????????????????????? | | """#??????????????????????????????? | | "#???????????#####??????????????? | | ] " "##?????????##" #??????????????# | | "###???????#" #?????????????## | | ""#??????##" ##????????????# | | "#????###^ ###????????### | | #""" ###??# ^ ########## | | ##""" ;#### #""""## | | ?#"""" % ;;# | | ##"" g @ ;; | | #"""" #### | | " ""#?#"""""#### | | #" ##?#######??#### | | #####;#?????????????##### | | #????##?????????????????## | | " ##????????????????????????? | | "" """ #????????????????????????? | | """ " " ""#" ##????????????????????????? | | ####""" """## ## #?????????????????????????? | | ???###""""#### # #?????????????????????????? | | ##???######??##########??????????????????????????? | | !#???????????????????????????????????????????????? | | !#???????????????????????????????????????????????? | | "#???????????????????????????????????????????????? | | "#???????????????????????????????????????????????? | | ##???????????????????????????????????????????????? | | ?????????????????????????????????????????????????? | | ?????????????????????????????????????????????????? | | ?????????????????????????????????????????????????? | | ?????????????????????????????????????????????????? | | ?????????????????????????????????????????????????? | | ?????????????????????????????????????????????????? | | ?????????????????????????????????????????????????? | | ?????????????????????????????????????????????????? | +----------------------------------------------------+ Best States ------------- Heat Dissipation 25 Energy Generation 10 Energy Capacity 250 Matter Stores 300 Matter Capacity 300 Sight Range 16 Terrain Scan Density 10 Evasion (%) 40 Recoil Reduction 2 Item Schematics ----------------- Hcp. Storage Unit | -10/Materials | Hacked Robot Schematics ------------------ None Fabricated ------------ Nothing Alien Tech Used ----------------- None Achievements -------------- None Challenges ------------ None Game ------ Seed GammaInertialTerrabomb Manual? 0 Play Time 00:15:26 Cumulative 610.0 hours Start 2021.06.26 @ 13:03:38 End 2021.06.26 @ 13:15:24 Sessions 1 Manual Loads 0 Difficulty Rogue Special Mode None Game No. 368 Rogue 368 Adventurer 0 Explorer 0 Win Type - Total 7 Types 4/0/1/1/1/0/0/0/0 Lore% 89 Gallery% 90 Achievement% 71 Wizard Run 0 Options --------- ASCII 0 Keyboard 0 Movement Mouse Keybinds 1 Fullscreen 2 Font 24/Smallcaps Map View 76x50 Tactical HUD 1 Map Filters NONE Filters NONE Steam 1 RUN: 8a0ff9a4-0ebe-46f5-a1c9-83be794a3429